bitfinex/quotes_SOLUSD_20241121
["timestamp","ask_amount","ask_price","bid_price","bid_amount"]
[1732178075511,32.8255,241.79,241.75,14.26489538]
[1732178075911,32.8255,241.79,241.74,14.26489538]
[1732178077926,12.1066,241.83,241.77,20.0]
[1732178078329,28.63065,241.83,241.77,20.0]
[1732178078814,28.63065,241.83,241.77,34.26489538]
[1732178079021,12.1066,241.83,241.79,14.26489538]
[1732178082420,13.0663,241.89,241.81,14.26489538]
[1732178083216,16.520714,241.88,241.82,14.26489538]
[1732178083633,13.0663,241.89,241.82,14.26489538]
[1732178083838,13.0663,241.89,241.83,34.26489538]
[1732178084019,13.0663,241.89,241.83,14.26489538]
[1732178085024,13.0663,241.89,241.8,20.0]
[1732178085437,23.776884,241.88,241.8,20.0]
[1732178085634,23.776884,241.88,241.78,20.0]
[1732178086214,23.776884,241.88,241.74,35.26314011]
[1732178086526,23.776884,241.88,241.74,20.0]
[1732178086724,23.776884,241.88,241.73,14.26489538]
[1732178087039,23.776884,241.86,241.71,14.26489538]
[1732178088141,23.776884,241.84,241.71,14.26489538]
[1732178088319,23.776884,241.84,241.74,34.26489538]
[1732178088320,31.5379,241.83,241.74,34.26489538]
[1732178088518,31.5379,241.83,241.77,14.26489538]
[1732178088734,31.5379,241.83,241.77,19.59311199]
[1732178089737,13.0663,241.89,241.8,14.26489538]
[1732178089948,44.5782,241.89,241.8,14.26489538]
[1732178090621,44.5782,241.89,241.83,20.0]
[1732178090815,44.5782,241.89,241.82,20.0]
[1732178091015,44.5782,241.89,241.81,20.0]
[1732178091640,44.5782,241.89,241.8,20.0]
[1732178091837,23.776884,241.88,241.8,20.0]
[1732178092146,23.776884,241.88,241.79,34.26489538]
[1732178092316,23.776884,241.88,241.81,20.0]
[1732178093223,44.5782,241.89,241.82,14.26489538]
[1732178093418,44.5782,241.89,241.83,20.0]
[1732178094142,24.1327,241.97,241.83,20.0]
[1732178095642,23.776884,241.94,241.83,20.0]
[1732178095834,23.776884,241.94,241.81,14.26489538]
[1732178096239,23.776884,241.94,241.82,20.0]
[1732178096844,23.776884,241.94,241.8,14.26489538]
[1732178097348,23.776884,241.92,241.81,20.0]
[1732178098046,23.776884,241.92,241.79,14.26489538]
[1732178098223,23.776884,241.92,241.8,20.0]
[1732178099021,27.910084,241.94,241.8,20.0]
[1732178099322,27.910084,241.94,241.78,14.26489538]
[1732178099730,23.776884,241.92,241.75,14.26489538]
[1732178099931,20.0,241.91,241.76,14.26489538]
[1732178100141,23.776884,241.9,241.76,14.26489538]
[1732178100334,23.776884,241.9,241.7,17.35171661]
[1732178100554,23.776884,241.9,241.77,19.59311199]
[1732178100724,23.776884,241.9,241.74,14.26489538]
[1732178101145,23.776884,241.88,241.74,14.26489538]
[1732178101342,23.776884,241.86,241.73,14.26489538]
[1732178102043,23.776884,241.86,241.74,14.26489538]
[1732178102246,23.776884,241.86,241.77,14.26489538]
[1732178102436,44.8211,241.87,241.75,20.0]
[1732178102437,44.8211,241.87,241.79,20.0]
[1732178103860,44.8211,241.87,241.76,34.26489538]
[1732178104350,23.776884,241.86,241.76,20.0]
[1732178104524,23.776884,241.86,241.74,20.0]
[1732178105031,23.776884,241.86,241.75,14.26489538]
[1732178105223,23.776884,241.86,241.76,20.0]
[1732178105824,27.911484,241.86,241.72,14.26489538]
[1732178106454,27.911484,241.86,241.71,14.26489538]
[1732178106641,27.911484,241.86,241.72,14.26489538]
[1732178107158,27.911484,241.86,241.71,34.26489538]
[1732178107955,27.911484,241.86,241.72,14.26489538]
[1732178108652,27.911484,241.86,241.73,20.0]
[1732178109758,27.911484,241.86,241.74,20.0]
[1732178110131,23.776884,241.86,241.75,14.26489538]
[1732178110462,44.8211,241.87,241.78,14.26489538]
[1732178110750,44.8211,241.87,241.71,20.0]
[1732178110751,44.8211,241.87,241.79,20.0]
[1732178111739,44.8211,241.87,241.77,20.0]
[1732178112147,23.776884,241.86,241.77,20.0]
[1732178112949,23.776884,241.86,241.77,14.26489538]
[1732178113128,23.776884,241.86,241.78,20.0]
[1732178113548,23.776884,241.86,241.76,14.26489538]
[1732178113749,44.8211,241.87,241.78,20.0]
[1732178113953,23.776884,241.86,241.78,20.0]
[1732178114250,23.776884,241.86,241.76,20.0]
[1732178114932,23.776884,241.86,241.77,14.26489538]
[1732178115127,23.776884,241.86,241.78,20.0]
[1732178115633,23.776884,241.86,241.77,20.0]
[1732178117233,44.8211,241.87,241.78,20.0]
[1732178121260,23.776884,241.86,241.75,20.0]
[1732178123271,23.776884,241.86,241.73,20.0]
[1732178124342,23.776884,241.86,241.73,14.26489538]
[1732178124664,23.776884,241.86,241.74,14.26489538]
[1732178124839,44.8211,241.87,241.78,14.26489538]
[1732178125444,44.8211,241.87,241.76,14.26489538]
[1732178125646,44.8211,241.87,241.77,20.0]
[1732178126150,23.776884,241.86,241.77,20.0]
[1732178126548,23.776884,241.86,241.75,14.26489538]
[1732178126549,23.776884,241.86,241.76,20.0]
[1732178127362,23.776884,241.86,241.74,34.26489538]
[1732178127565,23.776884,241.86,241.75,14.26489538]
[1732178127771,23.776884,241.86,241.76,20.0]
[1732178128241,23.776884,241.86,241.75,20.0]
[1732178128446,27.911484,241.86,241.75,20.0]
[1732178128835,34.31442486,241.86,241.75,20.0]
[1732178129048,27.911484,241.86,241.75,20.0]
[1732178129953,27.911484,241.86,241.75,34.26489538]
[1732178130149,19.00585155,241.87,241.75,34.26489538]
[1732178130760,19.00585155,241.87,241.74,34.23986398]
[1732178131470,19.00585155,241.87,241.75,14.23986398]
[1732178131769,23.14025155,241.87,241.76,20.0]
[1732178131975,19.00585155,241.87,241.76,20.0]
[1732178132353,19.00585155,241.87,241.78,9.11284851]
[1732178133571,19.00585155,241.87,241.78,20.0]
[1732178134158,16.523193,241.86,241.78,20.0]
[1732178135770,16.523193,241.86,241.77,9.11284851]
[1732178135960,16.523193,241.86,241.78,20.0]
[1732178136571,16.523193,241.86,241.77,20.0]
[1732178136762,16.523193,241.86,241.75,9.11284851]
[1732178137176,16.523193,241.86,241.78,20.0]
[1732178137553,16.523193,241.86,241.78,9.11284851]
[1732178138279,16.523193,241.86,241.78,20.0]
[1732178138580,20.657893,241.86,241.74,20.0]
[1732178140473,20.657893,241.86,241.75,9.11284851]
[1732178141282,20.657893,241.86,241.73,5.32821661]
[1732178141574,12.5478,241.84,241.73,5.32821661]
[1732178142274,18.95074086,241.84,241.73,5.32821661]
[1732178142583,4.1351,241.83,241.73,5.32821661]
[1732178143173,24.1351,241.83,241.73,5.32821661]
[1732178143879,12.5478,241.84,241.77,9.11284851]
[1732178144362,12.5478,241.84,241.78,9.11284851]
[1732178146185,12.5478,241.84,241.76,9.11284851]
[1732178146678,12.5478,241.84,241.76,9.11224875]
[1732178146884,12.5478,241.84,241.76,20.0]
[1732178147076,12.5478,241.84,241.77,9.11224875]
[1732178147278,12.5478,241.84,241.77,14.23653966]
[1732178147575,12.5478,241.84,241.76,34.23653966]
[1732178149174,12.5478,241.84,241.76,20.0]
[1732178149479,12.5478,241.84,241.75,14.23653966]
[1732178149786,12.5478,241.84,241.77,14.23653966]
[1732178149985,12.5478,241.84,241.78,14.23653966]
[1732178150168,6.10745155,241.87,241.82,14.23653966]
[1732178150368,12.1531,241.9,241.84,14.23653966]
[1732178150767,12.1531,241.9,241.83,14.23653966]
[1732178151080,12.1531,241.9,241.82,14.23653966]
[1732178152790,12.1531,241.9,241.81,14.23653966]
[1732178152978,12.1531,241.9,241.8,34.23653966]
[1732178153991,16.2871,241.9,241.8,20.0]
[1732178154299,16.2871,241.9,241.79,20.0]
[1732178154955,16.2871,241.9,241.79,14.23653966]
[1732178155160,16.2871,241.9,241.75,34.23653966]
[1732178155380,16.2871,241.9,241.77,14.23653966]
[1732178155573,12.1531,241.9,241.8,14.23653966]
[1732178155769,12.1531,241.9,241.82,14.23653966]
[1732178156486,12.1531,241.9,241.78,14.23653966]
[1732178156664,12.1531,241.9,241.88,14.23653966]
[1732178156864,12.1531,241.9,241.87,14.23653966]
[1732178157084,12.1531,241.9,241.86,14.23653966]
[1732178157282,12.1531,241.9,241.85,14.23653966]
[1732178160376,12.1531,241.9,241.83,14.23653966]
[1732178161088,12.1531,241.9,241.82,20.0]
[1732178162488,23.776884,241.98,241.82,20.0]
[1732178162690,20.0,241.93,241.79,14.23653966]
[1732178162988,20.0,241.93,241.71,32.3091]
[1732178162989,20.0,241.93,241.78,14.23653966]
[1732178164075,20.0,241.9,241.74,4.65818455]
[1732178164281,20.0,241.9,241.75,14.23653966]
[1732178164595,20.0,241.9,241.79,14.23653966]
[1732178164813,4.1335,241.92,241.79,14.23653966]
[1732178165095,4.1335,241.92,241.77,14.23653966]
[1732178165389,12.7229,241.9,241.78,14.23653966]
[1732178165570,16.8569,241.9,241.79,34.23653966]
[1732178166189,12.7229,241.9,241.81,14.23653966]
[1732178166687,12.7229,241.9,241.82,20.0]
[1732178168768,12.7229,241.9,241.81,14.2317376]
[1732178168969,12.7229,241.9,241.78,23.776884]
[1732178169182,12.7229,241.9,241.8,14.2317376]
[1732178169386,12.7229,241.9,241.8,9.10950051]
[1732178170080,16.8569,241.9,241.78,20.0]
[1732178170280,16.8569,241.9,241.79,9.10950051]
[1732178170691,16.8569,241.9,241.8,9.10950051]
[1732178170887,16.8569,241.9,241.8,14.43771712]
[1732178172174,16.8569,241.9,241.8,9.10950051]
[1732178173091,16.8569,241.9,241.78,9.10950051]
[1732178173590,16.8569,241.9,241.79,9.10950051]
[1732178174092,16.8569,241.9,241.78,9.10950051]
[1732178174482,16.8569,241.9,241.78,20.0]
[1732178175370,16.8569,241.9,241.78,29.10950051]
[1732178175777,16.8569,241.9,241.78,20.0]
[1732178176081,16.8569,241.9,241.78,29.10950051]
[1732178177592,16.8569,241.9,241.78,20.0]
[1732178178008,16.8569,241.9,241.78,29.10950051]
[1732178178292,16.8569,241.9,241.79,9.10950051]
[1732178179190,16.8569,241.9,241.78,4.65818455]
[1732178179391,16.8569,241.9,241.76,20.0]
[1732178179695,20.0,241.89,241.71,36.70828649]
[1732178179900,16.8569,241.9,241.8,9.10950051]
[1732178180081,16.8569,241.9,241.82,9.10950051]
[1732178180288,16.8569,241.9,241.8,9.10950051]
[1732178183587,16.8569,241.9,241.79,9.10950051]
[1732178183986,16.8569,241.9,241.8,9.10950051]
[1732178184580,16.8569,241.9,241.76,9.10950051]
[1732178184882,16.8569,241.9,241.77,29.10950051]
[1732178185489,16.8569,241.9,241.78,9.10950051]
[1732178185692,16.8569,241.9,241.74,20.0]
[1732178186003,16.8569,241.9,241.78,9.10950051]
[1732178186783,16.8569,241.9,241.77,9.10950051]
[1732178187075,16.8569,241.9,241.75,9.10950051]
[1732178187497,20.0,241.89,241.73,23.776884]
[1732178187678,20.0,241.89,241.73,32.88638451]
[1732178187996,33.0275,241.87,241.72,9.19679572]
[1732178188302,33.0275,241.87,241.72,4.79760923]
[1732178192006,12.4552,241.67,241.51,9.10950051]
[1732178192837,12.4552,241.67,241.61,9.10950051]
[1732178193906,12.4552,241.67,241.63,9.10950051]
[1732178194708,30.3875,241.71,241.64,9.12126424]
[1732178195185,30.3875,241.71,241.65,9.12126424]
[1732178195904,30.3875,241.71,241.63,9.12126424]
[1732178196288,30.3875,241.71,241.64,9.12126424]
[1732178196495,30.3875,241.71,241.64,14.2514672]
[1732178197508,30.3875,241.71,241.63,14.2514672]
[1732178197691,30.3875,241.71,241.62,14.2514672]
[1732178197886,30.3875,241.71,241.63,14.2514672]
[1732178199809,30.3875,241.71,241.64,14.2514672]
[1732178201307,12.8868,241.73,241.69,14.2514672]
[1732178203300,32.8332,241.78,241.71,14.2514672]
[1732178203499,32.8332,241.78,241.72,14.2514672]
[1732178205623,12.2786,241.8,241.74,14.2514672]
[1732178206110,12.2786,241.8,241.76,14.2514672]
[1732178206695,32.2593,241.84,241.76,14.2514672]
[1732178208226,36.3944,241.84,241.73,20.0]
[1732178208397,36.3944,241.84,241.7,14.2514672]
[1732178208594,36.3944,241.84,241.71,34.2514672]
[1732178209022,36.3944,241.84,241.71,20.0]
[1732178209320,36.3944,241.84,241.71,14.2514672]
[1732178209706,36.3944,241.84,241.72,20.0]
[1732178210019,36.3944,241.84,241.73,14.2514672]
[1732178210927,36.3944,241.84,241.72,19.49637592]
[1732178211222,36.3944,241.84,241.72,5.24490872]
[1732178211405,36.3944,241.84,241.72,20.0]
[1732178212613,36.3944,241.84,241.74,14.2514672]
[1732178212826,36.3944,241.84,241.67,45.7733672]
[1732178212827,36.3944,241.84,241.73,14.2514672]
[1732178213230,32.2593,241.84,241.74,34.2514672]
[1732178213396,32.2593,241.84,241.74,20.0]
[1732178214599,36.3943,241.84,241.72,20.0]
[1732178214928,36.3943,241.84,241.69,34.2514672]
[1732178215227,20.0,241.81,241.64,14.2514672]
[1732178215929,20.0,241.81,241.66,14.2514672]
[1732178216432,20.0,241.81,241.67,20.0]
[1732178216719,4.1356,241.8,241.67,20.0]
[1732178217307,4.1356,241.8,241.67,14.2514672]
[1732178217622,4.1356,241.8,241.68,20.0]
[1732178219323,4.1356,241.8,241.67,20.0]
[1732178221115,4.1356,241.8,241.66,20.0]
[1732178221430,4.1356,241.8,241.65,14.2514672]
[1732178221634,4.1356,241.8,241.66,20.0]
[1732178221811,4.1356,241.8,241.66,14.2514672]
[1732178222214,4.1356,241.8,241.68,14.2514672]
[1732178222429,4.1356,241.8,241.67,14.2514672]
[1732178222612,4.1356,241.8,241.65,14.2514672]
[1732178222806,4.1356,241.8,241.64,34.2514672]
[1732178223342,32.6539,241.79,241.64,14.2514672]
[1732178223629,32.7721,241.78,241.61,19.49637592]
[1732178224629,32.7721,241.78,241.62,20.0]
[1732178224949,4.1361,241.77,241.62,20.0]
[1732178225842,20.0,241.74,241.61,5.24490872]
[1732178226013,63.0812,241.72,241.56,9.12327936]
[1732178226638,63.0812,241.72,241.56,9.12670637]
[1732178226933,63.0812,241.72,241.57,9.12670637]
[1732178227140,4.1371,241.71,241.57,9.12670637]
[1732178227320,4.1371,241.71,241.56,14.25959096]
[1732178227631,4.1371,241.71,241.54,19.50449968]
[1732178228635,4.1371,241.71,241.55,20.0]
[1732178229539,13.1586,241.7,241.55,20.0]
[1732178229731,20.0,241.69,241.55,20.0]
[1732178229937,4.1377,241.68,241.55,20.0]
[1732178231724,4.1377,241.68,241.55,34.25959096]
[1732178232627,4.1377,241.68,241.55,20.0]
[1732178233428,4.1377,241.68,241.57,14.25959096]
[1732178233627,4.1377,241.68,241.56,14.25959096]
[1732178234445,30.6421,241.67,241.55,14.25959096]
[1732178234654,30.6421,241.67,241.56,20.0]
[1732178234942,30.6421,241.67,241.56,34.25959096]
[1732178235947,30.6421,241.67,241.58,14.25959096]
[1732178236124,30.6421,241.67,241.6,14.25959096]
[1732178237045,30.6421,241.67,241.59,14.25959096]
[1732178238337,30.6421,241.67,241.6,14.25959096]
[1732178238539,30.6421,241.67,241.61,14.25959096]
[1732178240349,30.6421,241.67,241.6,14.25959096]
[1732178240546,30.6421,241.67,241.59,14.25959096]
[1732178241046,4.138,241.66,241.57,19.50449968]
[1732178241230,4.138,241.66,241.58,20.0]
[1732178241630,30.6421,241.67,241.55,14.25959096]
[1732178241948,30.6421,241.67,241.56,14.25959096]
[1732178242142,34.7799,241.67,241.56,14.25959096]
[1732178242324,34.7799,241.67,241.55,34.25959096]
[1732178242524,34.7799,241.67,241.55,20.0]
[1732178243147,34.7799,241.67,241.53,14.25959096]
[1732178243337,34.7799,241.67,241.52,14.25959096]
[1732178243338,20.0,241.64,241.52,14.25959096]
[1732178243543,20.0,241.64,241.51,14.25959096]
[1732178243850,20.0,241.64,241.5,14.25959096]
[1732178244234,4.1385,241.63,241.5,14.25959096]
[1732178244645,4.1385,241.63,241.51,14.25959096]
[1732178244831,4.1385,241.63,241.51,19.50449968]
[1732178245032,4.1385,241.63,241.54,14.25959096]
[1732178245227,13.2867,241.65,241.55,14.25959096]
[1732178245532,17.4249,241.65,241.56,14.25959096]
[1732178245735,17.4249,241.65,241.55,19.50449968]
[1732178246758,17.4249,241.65,241.55,5.24490872]
[1732178247131,17.4249,241.65,241.53,14.25959096]
[1732178247538,17.4249,241.65,241.54,14.25959096]
[1732178247854,13.2867,241.65,241.58,14.25959096]
[1732178248027,13.2867,241.65,241.59,14.25959096]
[1732178248356,13.2867,241.65,241.61,14.25959096]
[1732178248850,30.6421,241.67,241.63,14.25959096]
[1732178249353,30.6421,241.67,241.64,14.25959096]
[1732178249565,12.8938,241.71,241.64,14.25959096]
[1732178249732,12.8938,241.71,241.57,5.24490872]
[1732178249733,12.8938,241.71,241.65,14.25959096]
[1732178249933,12.8938,241.71,241.66,14.25959096]
[1732178250433,12.8938,241.71,241.65,14.25959096]
[1732178250743,12.8938,241.71,241.66,14.25959096]
[1732178253130,12.8938,241.71,241.65,20.0]
[1732178253940,12.8938,241.71,241.64,34.25959096]
[1732178255957,12.8938,241.71,241.65,14.25959096]
[1732178256137,30.5015,241.74,241.68,14.25959096]
[1732178256451,30.5015,241.74,241.66,5.24490872]
[1732178257160,30.5015,241.74,241.66,19.50449968]
[1732178257532,30.5015,241.74,241.67,14.25959096]
[1732178257961,30.5015,241.74,241.68,20.0]
[1732178258154,30.5015,241.74,241.68,34.25959096]
[1732178259154,13.2172,241.77,241.68,34.25959096]
[1732178259943,13.2172,241.77,241.66,19.50449968]
[1732178260263,17.3534,241.77,241.65,20.0]
[1732178260867,17.3534,241.77,241.65,14.25959096]
[1732178261242,17.3534,241.77,241.66,20.0]
[1732178262338,17.3534,241.77,241.66,34.25959096]
[1732178263340,13.2172,241.77,241.68,14.25959096]
[1732178263958,13.2172,241.77,241.67,20.0]
[1732178264443,17.3534,241.77,241.67,20.0]
[1732178265363,13.2172,241.77,241.68,14.25959096]
[1732178265551,13.2172,241.77,241.68,20.0]
[1732178265864,17.3534,241.77,241.67,5.24490872]
[1732178266073,17.3534,241.77,241.66,20.0]
[1732178266563,17.3534,241.77,241.66,34.25959096]
[1732178266767,17.3534,241.77,241.64,23.776884]
[1732178267136,17.3534,241.77,241.65,20.0]
[1732178267567,17.3534,241.77,241.62,10.45678462]
[1732178267568,17.3534,241.77,241.63,20.0]
[1732178268866,12.7696,241.84,241.73,9.12303891]
[1732178269043,4.1341,241.89,241.74,10.89011795]
[1732178269366,4.1341,241.89,241.75,29.12303891]
[1732178269665,4.1341,241.89,241.71,32.4357]
[1732178269666,4.1341,241.89,241.77,20.0]
[1732178269859,4.1341,241.89,241.78,5.67824205]
[1732178270057,43.2909,241.92,241.81,20.0]
[1732178270670,43.2909,241.92,241.81,9.10703198]
[1732178271265,43.2909,241.92,241.8,34.22999162]
[1732178271556,47.4245,241.92,241.8,20.0]
[1732178271763,47.4245,241.92,241.79,20.0]
[1732178272558,47.4245,241.92,241.8,20.0]
[1732178273572,47.4245,241.92,241.77,20.0]
[1732178274054,47.4245,241.92,241.76,23.776884]
[1732178274055,47.4245,241.92,241.76,20.0]
[1732178275964,47.4245,241.92,241.77,5.67824205]
[1732178276165,47.4245,241.92,241.78,20.0]
[1732178276372,47.4245,241.92,241.79,5.67824205]
[1732178278552,4.1339,241.9,241.75,34.22999162]
[1732178278767,4.1339,241.9,241.76,14.22999162]
[1732178279362,4.1339,241.9,241.78,14.22999162]
[1732178279768,4.1339,241.9,241.79,5.67824205]
[1732178280351,4.1339,241.9,241.8,20.0]
[1732178280675,47.4246,241.92,241.8,25.67824205]
[1732178280856,43.2909,241.92,241.81,14.22999162]
[1732178281254,47.4245,241.92,241.8,25.67824205]
[1732178281767,43.2909,241.92,241.8,25.67824205]
[1732178281973,43.2909,241.92,241.8,39.90823367]
[1732178283473,43.2909,241.92,241.8,25.67824205]
[1732178283649,47.4245,241.92,241.8,25.67824205]
[1732178284572,47.4245,241.92,241.8,5.67824205]
[1732178287484,47.4245,241.92,241.76,43.776884]
[1732178287772,47.4245,241.92,241.77,5.67824205]
[1732178287988,47.4245,241.92,241.78,20.0]
[1732178288157,47.4245,241.92,241.78,25.67824205]
[1732178288880,47.4245,241.92,241.77,20.0]
[1732178291061,47.4245,241.92,241.77,25.67824205]
[1732178291468,47.4245,241.92,241.78,5.67824205]
[1732178291782,47.4245,241.92,241.79,20.0]
[1732178292265,47.4245,241.92,241.79,5.67824205]
[1732178292660,47.4245,241.92,241.77,20.0]
[1732178293884,47.4245,241.92,241.77,25.67824205]
[1732178294560,47.4245,241.92,241.79,20.0]
[1732178295662,47.4245,241.92,241.77,20.0]
[1732178296288,23.776884,241.9,241.76,20.0]
[1732178296579,20.0,241.89,241.74,20.0]
[1732178297284,20.0,241.89,241.73,5.67824205]
[1732178297678,4.1342,241.88,241.73,5.67824205]
[1732178298185,13.1214,241.87,241.72,14.32393729]
[1732178298367,32.1782,241.86,241.72,5.2118759]
[1732178298569,4.1347,241.85,241.7,9.11206139]
[1732178298960,4.1347,241.85,241.73,9.11206139]
[1732178299162,4.1347,241.85,241.72,9.11206139]
[1732178299770,4.1347,241.85,241.71,14.28474788]
[1732178300070,4.1347,241.85,241.72,20.0]
[1732178300465,4.1347,241.85,241.69,9.11206139]
[1732178300670,4.1347,241.85,241.7,43.776884]
[1732178300874,4.1347,241.85,241.7,52.88894539]
[1732178301566,4.1347,241.85,241.71,9.11206139]
[1732178302186,4.1347,241.85,241.72,20.0]
[1732178305083,4.1347,241.85,241.71,20.0]
[1732178305459,4.1347,241.85,241.71,29.11206139]
[1732178307288,32.9762,241.83,241.67,4.72408701]
[1732178307590,32.9762,241.83,241.67,9.8967735]
[1732178308060,32.9762,241.83,241.67,19.00883489]
[1732178308464,32.9762,241.83,241.68,20.0]
[1732178308689,4.1353,241.82,241.68,20.0]
[1732178313594,4.1353,241.82,241.68,25.17268649]
[1732178314175,4.1353,241.82,241.68,34.28474788]
[1732178314405,4.1353,241.82,241.7,9.11206139]
[1732178314581,4.1353,241.82,241.71,9.11206139]
[1732178314897,4.1353,241.82,241.72,29.11206139]
[1732178315968,4.1353,241.82,241.71,29.11206139]
[1732178316396,4.1353,241.82,241.72,9.11206139]
[1732178318195,17.1113,241.83,241.72,9.11206139]
[1732178318378,12.9762,241.83,241.73,9.11206139]
[1732178321900,12.9762,241.83,241.73,14.28474788]
[1732178322900,17.1113,241.83,241.73,14.28474788]
[1732178323097,12.9762,241.83,241.73,14.28474788]
[1732178323601,12.9762,241.83,241.74,29.11206139]
[1732178323772,12.9762,241.83,241.77,9.11206139]
[1732178324187,12.9762,241.83,241.76,9.11206139]
[1732178324403,12.9762,241.83,241.76,20.0]
[1732178326784,12.9762,241.83,241.76,25.17268649]
[1732178328801,12.9762,241.83,241.77,5.17268649]
[1732178329306,12.9762,241.83,241.78,20.0]
[1732178334309,12.9762,241.83,241.77,5.17268649]
[1732178334487,17.1114,241.83,241.73,20.0]
[1732178335215,17.1114,241.83,241.72,20.0]
[1732178335509,12.9762,241.83,241.72,25.17268649]
[1732178335710,17.1113,241.83,241.74,20.0]
[1732178336007,17.1113,241.83,241.74,5.17268649]
[1732178338580,17.1113,241.83,241.69,9.11206139]
[1732178338784,17.1113,241.83,241.7,14.28474788]
[1732178338996,17.1113,241.83,241.71,29.11206139]
[1732178339193,17.1113,241.83,241.72,5.17268649]
[1732178349993,4.1354,241.81,241.72,5.17268649]
[1732178351294,4.1354,241.81,241.68,25.17268649]
[1732178356106,9.45044046,241.73,241.68,25.17268649]
[1732178360197,32.1125,241.82,241.72,9.45044046]
[1732178360521,32.1125,241.82,241.73,14.62312695]
[1732178360522,9.45044046,241.8,241.73,14.62312695]
[1732178361118,32.1125,241.82,241.76,20.0]
[1732178361310,41.56294046,241.82,241.76,29.45044046]
[1732178361511,9.45044046,241.82,241.76,29.45044046]
[1732178362615,12.9762,241.83,241.77,9.45044046]
[1732178363017,12.9762,241.83,241.78,20.0]
[1732178363404,22.42664046,241.83,241.76,9.45044046]
[1732178363721,22.42664046,241.83,241.77,20.0]
[1732178367525,9.45044046,241.82,241.77,20.0]
[1732178367709,9.45044046,241.82,241.76,20.0]
[1732178368016,9.45044046,241.82,241.76,25.17268649]
[1732178368225,12.9762,241.83,241.78,20.0]
[1732178368425,22.42664046,241.83,241.78,20.0]
[1732178368622,9.45044046,241.81,241.77,5.17268649]
[1732178371617,9.45044046,241.82,241.77,5.17268649]
[1732178372521,9.45044046,241.81,241.77,5.17268649]
[1732178374919,12.9762,241.83,241.7,0.62032315]
[1732178374920,9.45044046,241.8,241.7,0.62032315]
[1732178375113,9.45044046,241.8,241.73,9.45044046]
[1732178375521,9.45044046,241.81,241.72,20.0]
[1732178375815,9.45044046,241.81,241.75,20.0]
[1732178376017,9.45044046,241.82,241.75,29.45044046]
[1732178376215,12.9762,241.83,241.75,29.45044046]
[1732178376216,12.9762,241.83,241.76,9.45044046]
[1732178376412,9.45044046,241.82,241.75,29.45044046]
[1732178377021,12.9762,241.83,241.76,5.17268649]
[1732178377235,9.45044046,241.82,241.76,5.17268649]
[1732178383547,12.9762,241.83,241.77,9.45044046]
[1732178383844,16.523745,241.86,241.78,14.62312695]
[1732178383845,9.45044046,241.85,241.78,14.62312695]
[1732178384827,9.45044046,241.84,241.78,5.17268649]
[1732178385719,9.45044046,241.82,241.78,5.17268649]
[1732178386018,20.658345,241.86,241.78,5.17268649]
[1732178386218,9.45044046,241.82,241.78,5.17268649]
[1732178386953,9.45044046,241.83,241.78,5.17268649]
[1732178387149,9.45044046,241.81,241.78,5.17268649]
[1732178387744,9.45044046,241.83,241.78,5.17268649]
[1732178388245,9.45044046,241.83,241.75,20.0]
[1732178388740,9.45044046,241.83,241.76,5.17268649]
[1732178388951,9.45044046,241.82,241.76,5.17268649]
[1732178389137,9.45044046,241.9,241.82,20.0]
[1732178389452,9.45044046,241.9,241.82,25.17268649]
[1732178390123,9.45044046,241.88,241.82,25.17268649]
[1732178390434,9.45044046,241.89,241.82,25.17268649]
[1732178391025,9.45044046,241.9,241.83,9.45044046]
[1732178391442,9.45044046,241.89,241.82,34.62312695]
[1732178393048,9.45044046,241.9,241.82,34.62312695]
[1732178393235,9.45044046,241.89,241.82,25.17268649]
[1732178394744,9.45044046,241.88,241.82,25.17268649]
[1732178395824,9.45044046,241.89,241.82,25.17268649]
[1732178396020,9.45044046,241.88,241.82,25.17268649]
[1732178398347,4.1338,241.91,241.82,25.17268649]
[1732178398552,4.1334,241.93,241.83,5.15065872]